{"text_format":"1","workbook":"xlsx","n_sheets":3,"sheets":["Open","ALL_A","ALL_C"],"not_rendered":{"charts":0,"images":1,"macros":1,"external_links":0,"defined_names":11,"comments":0,"pivot_tables":0},"unopened":[],"bounds":{"document_bytes":16777216,"sheet_cells":100000,"rows_first":2000,"rows_last":500,"rows_between":2000,"halvings":0,"cell_chars":16384,"cell_head_chars":4096},"cells_cut":0,"cells_raw":0,"read":"whole","date_system":"1900"}

{"sheet":"Open","index":0,"n_rows":10,"n_cols":4,"rows_kept":10,"cut":false,"hidden":false,"merged":[[12,1,12,12],[9,1,9,12],[1,3,1,12],[4,1,4,12],[6,1,6,12],[8,2,8,11]]}
[]
[null,null,null,"Ministero dello Sviluppo economico e Ministero dell'Istruzione"]
[null,null,3]
[]
[null,"Direzione generale per la politica industriale, l'innovazione le PMI"]
[]
[null,"Divisione IV “Politiche per l'innovazione e per la riqualificazione dei territori in crisi”"]
[]
[null,null,"Direzione generale per gli Ordinamenti scolastici, la valutazione e l'internazionalizzazione del sistema nazionale di istruzione"]
[null,"D.M. 18.12.2019  "]

{"sheet":"ALL_A","index":1,"n_rows":208,"n_cols":35,"rows_kept":208,"cut":false,"hidden":false,"merged":[[0,27,1,28],[0,30,1,30],[0,31,1,31],[0,33,1,33],[0,34,1,34],[0,15,1,15],[0,17,1,17],[0,19,1,19],[0,21,1,21],[0,22,1,22],[0,24,1,24],[0,25,1,25],[14,2,14,3],[15,2,15,3],[15,4,15,5],[17,2,17,5],[1,5,1,8],[3,5,3,8],[9,2,9,8],[10,2,10,4],[10,5,10,8],[11,2,11,3],[11,7,11,8],[11,4,11,5],[12,3,12,6],[4,2,4,4],[5,2,5,4],[27,2,27,5],[5,5,5,8],[4,5,4,8],[0,5,0,8],[0,12,1,12],[0,13,1,13],[0,14,1,14],[0,3,3,4],[0,10,5,10],[0,11,5,11],[18,2,18,5],[19,2,20,5],[19,6,20,8],[21,2,22,5],[21,6,22,8],[23,2,23,4],[24,2,24,5],[25,2,25,5],[26,2,26,5],[13,2,13,3],[13,4,13,5],[13,7,13,8],[14,4,14,5],[14,7,14,8],[44,2,44,5],[44,7,44,8],[45,2,45,5],[45,7,45,8],[46,2,46,5],[46,7,46,8],[47,7,47,8],[47,2,47,5],[48,2,48,5],[48,7,48,8],[49,2,49,5],[49,7,49,8],[50,2,50,5],[51,2,51,5],[52,2,52,5],[52,7,52,8],[53,2,53,5],[53,7,53,8],[54,2,54,5],[54,7,54,8],[50,7,50,8],[51,7,51,8],[55,7,55,8],[55,2,55,5],[56,2,56,5],[56,7,56,8],[57,2,57,5],[57,7,57,8],[58,2,58,5],[59,2,59,5],[58,7,58,8],[59,7,59,8],[60,2,60,5],[60,7,60,8],[61,2,61,5],[61,7,61,8],[62,7,62,8],[62,2,62,5],[63,2,63,5],[63,7,63,8],[64,2,64,5],[64,7,64,8],[65,2,65,5],[66,2,66,5],[65,7,65,8],[66,7,66,8],[67,2,67,5],[67,7,67,8],[68,2,68,5],[68,7,68,8],[69,7,69,8],[69,2,69,5],[70,2,70,5],[70,7,70,8],[71,2,71,5],[71,7,71,8],[72,2,72,5],[73,2,73,5],[72,7,72,8],[73,7,73,8],[74,2,74,5],[74,7,74,8],[75,2,75,5],[75,7,75,8],[76,7,76,8],[76,2,76,5],[77,2,77,5],[77,7,77,8],[78,2,78,5],[78,7,78,8],[79,2,79,5],[80,2,80,5],[79,7,79,8],[80,7,80,8],[81,2,81,5],[81,7,81,8],[82,2,82,5],[82,7,82,8],[83,7,83,8],[83,2,83,5],[84,2,84,5],[84,7,84,8],[85,2,85,5],[85,7,85,8],[86,2,86,5],[87,2,87,5],[135,7,135,8],[136,7,136,8],[137,2,137,5],[137,7,137,8],[86,7,86,8],[87,7,87,8],[88,2,88,5],[88,7,88,8],[89,2,89,5],[89,7,89,8],[90,7,90,8],[90,2,90,5],[91,2,91,5],[91,7,91,8],[92,2,92,5],[92,7,92,8],[93,2,93,5],[94,2,94,5],[138,2,138,5],[138,7,138,8],[139,7,139,8],[139,2,139,5],[140,2,140,5],[140,7,140,8],[141,2,141,5],[141,7,141,8],[142,2,142,5],[143,2,143,5],[142,7,142,8],[143,7,143,8],[144,2,144,5],[144,7,144,8],[145,2,145,5],[145,7,145,8],[146,7,146,8],[146,2,146,5],[147,2,147,5],[147,7,147,8],[148,2,148,5],[148,7,148,8],[149,2,149,5],[150,2,150,5],[149,7,149,8],[150,7,150,8],[151,2,151,5],[151,7,151,8],[152,2,152,5],[152,7,152,8],[153,7,153,8],[153,2,153,5],[154,2,154,5],[154,7,154,8],[155,2,155,5],[155,7,155,8],[156,2,156,5],[157,2,157,5],[156,7,156,8],[157,7,157,8],[158,2,158,5],[158,7,158,8],[159,2,159,5],[159,7,159,8],[160,7,160,8],[160,2,160,5],[161,2,161,5],[161,7,161,8],[162,2,162,5],[162,7,162,8],[163,2,163,5],[164,2,164,5],[163,7,163,8],[164,7,164,8],[165,2,165,5],[165,7,165,8],[166,2,166,5],[166,7,166,8],[167,7,167,8],[167,2,167,5],[168,2,168,5],[168,7,168,8],[169,2,169,5],[169,7,169,8],[170,2,170,5],[171,2,171,5],[170,7,170,8],[171,7,171,8],[172,2,172,5],[172,7,172,8],[173,2,173,5],[173,7,173,8],[174,7,174,8],[174,2,174,5],[175,2,175,5],[175,7,175,8],[176,2,176,5],[176,7,176,8],[177,2,177,5],[178,2,178,5],[183,2,183,4],[184,2,184,4],[185,2,185,7],[177,7,177,8],[178,7,178,8],[179,2,179,5],[179,7,179,8],[180,2,180,4],[181,2,181,4],[182,2,182,4],[186,2,186,7],[187,2,187,4],[188,2,188,4],[190,2,190,7],[199,2,199,4],[201,2,201,7],[202,2,202,4],[203,2,203,4],[204,2,204,4],[205,2,205,4],[191,2,191,4],[192,2,192,4],[193,2,193,4],[194,2,194,4],[196,2,196,7],[197,2,197,4],[198,2,198,4],[34,7,34,8],[35,7,35,8],[37,2,37,5],[37,7,37,8],[38,2,38,5],[38,7,38,8],[39,7,39,8],[42,7,42,8],[43,7,43,8],[39,2,39,5],[40,2,40,5],[40,7,40,8],[41,2,41,5],[41,7,41,8],[42,2,42,5],[43,2,43,5],[28,2,28,5],[29,2,29,4],[30,2,30,4],[32,2,32,8],[33,2,33,8],[34,2,34,5],[35,2,35,5],[36,2,36,5],[36,7,36,8],[93,7,93,8],[94,7,94,8],[95,2,95,5],[95,7,95,8],[96,2,96,5],[96,7,96,8],[97,7,97,8],[97,2,97,5],[98,2,98,5],[98,7,98,8],[99,2,99,5],[99,7,99,8],[100,2,100,5],[101,2,101,5],[100,7,100,8],[101,7,101,8],[102,2,102,5],[102,7,102,8],[103,2,103,5],[103,7,103,8],[104,7,104,8],[104,2,104,5],[105,2,105,5],[105,7,105,8],[106,2,106,5],[106,7,106,8],[107,2,107,5],[108,2,108,5],[107,7,107,8],[108,7,108,8],[109,2,109,5],[109,7,109,8],[110,2,110,5],[110,7,110,8],[111,7,111,8],[111,2,111,5],[112,2,112,5],[112,7,112,8],[113,2,113,5],[113,7,113,8],[114,2,114,5],[115,2,115,5],[114,7,114,8],[115,7,115,8],[116,2,116,5],[116,7,116,8],[117,2,117,5],[117,7,117,8],[118,7,118,8],[118,2,118,5],[119,2,119,5],[119,7,119,8],[120,2,120,5],[120,7,120,8],[121,2,121,5],[122,2,122,5],[121,7,121,8],[122,7,122,8],[123,2,123,5],[123,7,123,8],[124,2,124,5],[124,7,124,8],[125,7,125,8],[125,2,125,5],[126,2,126,5],[126,7,126,8],[127,2,127,5],[127,7,127,8],[128,2,128,5],[133,2,133,5],[133,7,133,8],[134,2,134,5],[134,7,134,8],[135,2,135,5],[136,2,136,5],[129,2,129,5],[128,7,128,8],[129,7,129,8],[130,2,130,5],[130,7,130,8],[131,2,131,5],[131,7,131,8],[132,7,132,8],[132,2,132,5]]}
[null,null,null,"Ministero dello Sviluppo economico \ne Ministero dell'Istruzione",null,null,null,null,null,null,"check compilazione","check coerenza","Progetto salvato","imprese sing.le/ ass.te condiz.ti","valori si/no condiz.ti","Messaggio per PMI",null,"Anno_Domanda",null,"Esercizi_Chiusi",null,"Durata_PJ_Minima","Durata_PJ_Massima",null,"QUOTA_AERONAUTICA_Grande","QUOTA_AERONAUTICA_Piccola_Media",null,"Min_PMI_Associate",null,null,"Durata_RESTITUZIONE_Minima","Durata_RESTITUZIONE_Massima",null,"Sviluppo_RESTITUZIONI","BONUS_a8c2"]
[null,null,null,null,null,{"$f":"Open!B5","v":"Direzione generale per la politica industriale, l'innovazione le PMI"}]
[]
[null,null,null,null,null,{"$f":"Open!B7","v":"Divisione IV “Politiche per l'innovazione e per la riqualificazione dei territori in crisi”"},null,null,null,null,null,null,0,{"$f":"IF(#REF!<>\"\",\"Impresa singola\",\"\")","v":{"$error":"#REF!"}},{"$f":"IF(AND(#REF!<>\"\",#REF!=\"Imprese associate\"),\"Si\",\"\")","v":{"$error":"#REF!"}},"Si ricorda che, in caso di Piccola o Media Impresa, è necessario sottoscrivere ed allegare alla documentazione da inviare la Dichiarazione sostitutiva ai sensi dell'art. 47 D.P.R. 445/2000, scaricabile nella stessa pagina del sito web del Ministero dove sono scaricabili i presenti moduli.",null,2021,null,{"$f":"ANNO_DOMANDA-2","v":2019},null,24,60,null,0.6,0.25,null,2,2,null,5,10,null,{"$f":"Durata_RESTITUZIONE_Minima","v":5},{"$f":"(Durata_RESTITUZIONE_Massima-AH4)*3%","v":0.15}]
[null,null,null,null,null,"Direzione generale per gli Ordinamenti scolastici, la valutazione e l'internazionalizzazione del sistema nazionale di istruzione                                        "]
[null,null,null,null,null,"DOMANDA DI ACCESSO AI PROGETTI DI INFRASTRUTTURAZIONE DEL LABORATORIO\n- ALLEGATO A: Dati generali ITS proponente -",null,null,null,null,null,null,null,{"$f":"IF(#REF!<>\"\",\"Imprese associate\",\"\")","v":{"$error":"#REF!"}},{"$f":"IF(AND(#REF!<>\"\",#REF!=\"Imprese associate\"),\"No\",\"\")","v":{"$error":"#REF!"}},null,null,null,null,{"$f":"T4+1","v":2020},null,null,null,null,null,null,null,3,2,null,null,null,null,{"$f":"AH4+1","v":6},{"$f":"(Durata_RESTITUZIONE_Massima-AH6)*3%","v":0.12}]
[null,null,null,null,null,null,null,null,null,null,null,null,null,null,null,null,null,null,null,null,null,null,null,null,null,null,null,4,3,null,null,null,null,{"$f":"AH6+1","v":7},{"$f":"(Durata_RESTITUZIONE_Massima-AH7)*3%","v":0.09}]
[]
["X",null,null,null,null,null,null,null,null,null,{"$f":"IF(AND(#REF!=\"\",A9<>\"\"),\" - \" &#REF!&\" \n\",\"\")","v":{"$error":"#REF!"}}]
[null,null,"ITS PROPONENTE - LOCALIZZAZIONE DEL LABORATORIO OGGETTO DELL'INTERVENTO"]
["X",null,"DENOMINAZIONE",null,null,null,null,null,null,null,{"$f":"IF(AND(F11=\"\",A11<>\"\"),\" - \"& C11&\" \n\",\"\")","v":" - DENOMINAZIONE \n"}]
["X",null,"REGIONE di localizzazione",null,null,null,"COMUNE di localizzaizone",null,null,null," - REGIONE di localizzazione \n"]
[null,null,"INDIRIZZO",null,null,null,null,"CAP",null,null,""]
["X",null,"CODICE FISCALE",null,null,null,"PEC",null,null,null," - CODICE FISCALE \n"]
["X",null,"Contatto di riferimento (nome e cognome)",null,null,null,"Indirizzo e-mail",null,null,null," - Contatto di riferimento (nome e cognome) \n"]
["X",null,"Telefono",null,null,null,null,null,null,null," - Telefono \n"]
[]
[null,null,"Si intende realizzare un nuovo laboratorio?",null,null,null,null,null,"SI",null,{"$f":"IF(AND(SUM(F18:H18)=0,A18<>\"\"),C18&\" \",\"\")","v":""}]
[null,null,"Si intende potenziare un laboratorio esistente?",null,null,null,null,null,"NO",null,""]
[null,null,"Percorsi formativi interessati dall'utilizzo del laboratorio",null,null,null,null,null,null,null,""]
["X",null,null,null,null,null,null,null,null,null,{"$f":"IF(AND(SUM(F21:H21)=0,A21<>\"\"),\" - \" &#REF!&\" \n\",\"\")","v":{"$error":"#REF!"}},{"$f":"IF(OR(F21<>I29,G21<>I30,H21<>I31),\" - Addetti per tipologia di contratto non coerenti con addetti per livello di istruzione I219\n\",\"\")","v":""}]
[null,null,"Ambito tecnologico dell'investimento (tecnologie abilitanti 4.0)"]
[]
[null,null,null,null,null,null,null,null,null,null,{"$f":"IF(AND(SUM(F24:H24)=0,A50<>\"\"),C24&\" \",\"\")","v":""},{"$f":"IF(OR(F24>(F19+F20),G24>(G19+G20),H24>(H19+H20)),\" - Addetti in CIG non coerenti con operai e impiegati\n\",\"\")","v":""}]
[null,null,"TOTALE Spese di investimento previste"]
["X",null,"TOTALE Spese agevolabili previste",null,null,null,null,null,null,null,{"$f":"IF(AND(SUM(F26:H26)=0,A26<>\"\"),\" - \"& C26&\" \n\",\"\")","v":" - TOTALE Spese agevolabili previste \n"},{"$f":"IF(OR(F26>(F19+F18),G26>(G19+G18),H26>(H19+H18)),\" - Ricercatori/Tecninci non coerenti con dirigenti e impiegati\n\",\"\")","v":""}]
[null,null,"Finanziamento massimo sulle spese agevolabili  (max 50%)",null,null,null,{"$f":"G26*0.5","v":0}]
[null,null,"Il piano comprende oneri accessori, opere murarie o altre spese? "]
[null,null,null,null,null,null,null,null,null,null,null,{"$f":"IF(H29<0,\" - Numero di addetti negativo sulla voce Altro per l'anno \"&C29 & \" \n\",\"\")","v":""}]
[null,null,null,null,null,null,null,null,null,null,null,""]
[null,null,null,null,null,null,null,null,null,null,null,""]
[]
[]
[]
[]
[]
[]
[]
[]
[]
[]
[]
[]
[]
[]
[]
[]
[]
[]
[]
[]
[]
[]
[]
[]
[]
[]
[]
[]
[]
[]
[]
[]
[]
[]
[]
[]
[]
[]
[]
[]
[]
[]
[]
[]
[]
[]
[]
[]
[]
[]
[]
[]
[]
[]
[]
[]
[]
[]
[]
[]
[]
[]
[]
[]
[]
[]
[]
[]
[]
[]
[]
[]
[]
[]
[]
[]
[]
[]
[]
[]
[]
[]
[]
[]
[]
[]
[]
[]
[]
[]
[]
[]
[]
[]
[]
[]
[]
[]
[]
[]
[]
[]
[]
[]
[]
[]
[]
[]
[]
[]
[]
[]
[]
[]
[]
[]
[]
[]
[]
[]
[]
[]
[]
[]
[]
[]
[]
[]
[]
[]
[]
[]
[]
[]
[]
[]
[]
[]
[]
[]
[]
[]
[]
[]
[]
[]
[]
[]
[]
[]
[]
[]
["X",null,null,null,null,null,null,null,null,null,{"$f":"IF(AND(SUM(F184:H184)=0,A184<>\"\"), \" - \" & C184&\"\n \",\"\")","v":" - \n "},{"$f":"IF(#REF!=\"\",\"\",\nIF(#REF!=\"Grande\",\nIF((F184+G184)/2<QUOTA_AERONAUTICA_Grande,\" - \"&C184&\" incoerente con le dimensioni dell'impresa\",\"\"),\nIF((F184+G184)/2<QUOTA_AERONAUTICA_Piccola_Media,\" - \"&C184&\" incoerente con le dimensioni dell'impresa\",\"\")\n)\n)","v":{"$error":"#REF!"}},{"$f":"IF(G13=\"\",\"\",1)","v":""}]
[]
[]
[]
[]
[null,null,null,null,null,null,null,null,null,null,{"$f":"IF(AND(SUM(F189:H189)=0,A189<>\"\"), \" - \" & C187&\"\n \",\"\")","v":""}]
[]
[]
[]
[]
[]
[null,null,null,null,null,null,null,null,null,null,{"$f":"IF(AND(SUM(F195:H195)=0,A195<>\"\"),C195&\" \",\"\")","v":""}]
[]
[]
[]
[null,null,null,null,null,null,null,null,null,null,{"$f":"IF(AND(SUM(F199:H199)=0,A199<>\"\"),C199&\" \",\"\")","v":""}]
[]
[]
[]
[]
["A"]
["A"]
["A"]
[]
[null,null,null,null,null,null,null,null,null,null,{"$f":"CONCATENATE(#REF!,#REF!,#REF!,K9,#REF!,#REF!,K11,K12,K13,K14,K15,K16,#REF!,#REF!,#REF!,K18,K19,K20,K21,K24,K26,#REF!,K189,K195,K199)","v":{"$error":"#REF!"}},{"$f":"CONCATENATE(#REF!,#REF!,#REF!,#REF!,#REF!,#REF!,#REF!,L21,L24,L26,L29,L30,L31,L184)","v":{"$error":"#REF!"}}]

{"sheet":"ALL_C","index":2,"n_rows":206,"n_cols":24,"rows_kept":206,"cut":false,"hidden":false,"merged":[[79,2,79,13],[4,4,4,13],[0,2,3,2],[0,3,0,13],[1,3,1,13],[3,3,3,13],[5,3,5,13],[8,10,8,13],[0,15,5,15],[0,16,5,16],[0,17,5,17],[0,18,5,18],[76,2,77,13],[18,2,18,13]]}
[null,null,"                      Ministero dello Sviluppo economico e Ministero dell'Istruzione",null,null,null,null,null,null,null,null,null,null,null,null,"fin.to L. 808/85","check compilazione","check coerenza","% Maggiorazione costo pers.le",null,"Singola","Capofila","Associata"]
[null,null,null,{"$f":"Open!B5","v":"Direzione generale per la politica industriale, l'innovazione le PMI"},null,null,null,null,null,null,null,null,null,null,null,null,null,null,null,null,{"$f":"IF(AND(ALL_A!#REF!=\"Impresa singola\",ALL_A!#REF!=\"\"),1,0)","v":{"$error":"#REF!"}},{"$f":"IF(AND(ALL_A!#REF!=\"Imprese associate\",ALL_A!#REF!=\"Si\"),1,0)","v":{"$error":"#REF!"}},{"$f":"IF(AND(ALL_A!#REF!=\"Imprese associate\",ALL_A!#REF!=\"No\"),1,0)","v":{"$error":"#REF!"}}]
[]
[null,null,null,{"$f":"Open!B7","v":"Divisione IV “Politiche per l'innovazione e per la riqualificazione dei territori in crisi”"},null,null,null,null,null,null,null,null,null,null,null,null,null,null,null,null,60000,{"$f":"U4","v":60000},60000,"Massimo"]
[null,null,null,null,"Direzione generale  per gli Ordinamenti scolastici, la valutazione e l'internazionalizzazione del sistema nazionale di istruzione"]
[null,null,null,"DOMANDA DI ACCESSO AI PROGETTI DI INFRASTRUTTURAZIONE DEL LABORATORIO\n- ALLEGATO C: Previsioni di Costo del progetto -",null,null,null,null,null,null,null,null,null,null,null,null,null,null,null,null,1000,2000,null,"Minimo"]
[]
[]
[null,null,"C-1) PREVISIONE DEI COSTI DELLE ATTIVITA' (Per tipo di costo)"]
[]
[null,null," TIPO DI COSTO","COSTI CONSUNTIVATI",{"$f":"#REF!+1","v":{"$error":"#REF!"}},{"$f":"E11+1","v":{"$error":"#REF!"}},{"$error":"#REF!"},{"$error":"#REF!"},{"$error":"#REF!"},{"$error":"#REF!"},{"$error":"#REF!"},{"$error":"#REF!"},{"$error":"#REF!"},"TOTALE\nGENER."]
[null,null,"BENI STRUMENTALI",{"$f":"#REF!+#REF!+#REF!","v":{"$error":"#REF!"}},{"$f":"#REF!+#REF!+#REF!","v":{"$error":"#REF!"}},{"$error":"#REF!"},{"$error":"#REF!"},{"$error":"#REF!"},{"$error":"#REF!"},{"$error":"#REF!"},{"$error":"#REF!"},{"$error":"#REF!"},{"$error":"#REF!"}]
[null,null,"MACCHINARI, IMPIANTI, ATTREZZATURE, ECC:",{"$error":"#REF!"},{"$f":"#REF!+#REF!+#REF!","v":{"$error":"#REF!"}},{"$error":"#REF!"},{"$error":"#REF!"},{"$error":"#REF!"},{"$error":"#REF!"},{"$error":"#REF!"},{"$error":"#REF!"},{"$error":"#REF!"},{"$error":"#REF!"}]
[null,null,"ALTRE SPESE ",{"$error":"#REF!"},{"$f":"#REF!+#REF!+#REF!","v":{"$error":"#REF!"}},{"$error":"#REF!"},{"$error":"#REF!"},{"$error":"#REF!"},{"$error":"#REF!"},{"$error":"#REF!"},{"$error":"#REF!"},{"$error":"#REF!"},{"$error":"#REF!"}]
[null,null,"TOTALE GENERALE",{"$f":"SUM(D12:D14)","v":{"$error":"#REF!"}},{"$error":"#REF!"},{"$error":"#REF!"},{"$error":"#REF!"},{"$error":"#REF!"},{"$error":"#REF!"},{"$error":"#REF!"},{"$error":"#REF!"},{"$error":"#REF!"},{"$error":"#REF!"},{"$f":"SUM(N12-N14)","v":0},null,null,{"$f":"IF(AND(SUM(N15)=0,A15<>\"\"),\" - \"&C9&\" \n\",\"\")","v":""},{"$f":"IF($A$16<>\"\",CONCATENATE(U15,V15,W15),\"\")","v":{"$error":"#REF!"}},null,null,{"$f":"IF(AND(U2=1,U4<>\"\"),IF(AND(ALL_A!#REF!>(U4*U$2),ALL_A!#REF!<>0),\" - COSTI TOTALI DEL PROGETTO SUPERIORI AL MASSIMO CONSENTITO.\"&\"\n \",\"\"),\"\")","v":{"$error":"#REF!"}},{"$f":"IF(AND(V2=1,V4<>\"\"),IF(AND(ALL_A!#REF!>(V4*V$2),ALL_A!#REF!<>0),\" - COSTI TOTALI DEL PROGETTO SUPERIORI AL MASSIMO CONSENTITO.\"&\"\n \",\"\"),\"\")","v":{"$error":"#REF!"}},{"$f":"IF(AND(W2=1,W4<>\"\"),IF(AND(ALL_A!#REF!>(W4*W$2),ALL_A!#REF!<>0),\" - COSTI TOTALI DEL PROGETTO SUPERIORI AL MASSIMO CONSENTITO.\"&\"\n \",\"\"),\"\")","v":{"$error":"#REF!"}},{"$f":"X4","v":"Massimo"}]
["X",null,null,null,null,null,null,null,null,null,null,null,null,null,null,null,null,{"$f":"IF($A$16<>\"\",CONCATENATE(U16,V16,W16),\"\")","v":{"$error":"#REF!"}},null,null,{"$f":"IF(AND(U2=1,U5<>\"\"),IF(AND(ALL_A!#REF!<(U5*ALL_C!U$2),ALL_A!#REF!<>0),\" - COSTI TOTALI DEL PROGETTO INFERIORI AL MINIMO CONSENTITO.\"&\"\n \",\"\"),\"\")","v":{"$error":"#REF!"}},{"$f":"IF(AND(V2=1,V5<>\"\"),IF(AND(ALL_A!#REF!<(V5*ALL_C!V$2),ALL_A!#REF!<>0),\" - COSTI TOTALI DEL PROGETTO INFERIORI AL MINIMO CONSENTITO.\"&\"\n \",\"\"),\"\")","v":{"$error":"#REF!"}},{"$f":"IF(AND(W2=1,W5<>\"\"),IF(AND(ALL_A!#REF!<(W5*ALL_C!W$2),ALL_A!#REF!<>0),\" - COSTI TOTALI DEL PROGETTO INFERIORI AL MINIMO CONSENTITO.\"&\"\n \",\"\"),\"\")","v":{"$error":"#REF!"}},{"$f":"X6","v":"Minimo"}]
[]
[]
[null,null,"a) BENI STRUMENTALI:\nbeni strumentali, materiali e immateriali, con caratteristiche coerenti all’uso delle tecnologie abilitanti e funzionali ai processi di innovazione tecnologica 4.0;"]
[]
[null,null,"DESCRIZIONE",null,{"$f":"#REF!+1","v":{"$error":"#REF!"}},{"$f":"E21+1","v":{"$error":"#REF!"}},{"$error":"#REF!"},{"$error":"#REF!"},{"$error":"#REF!"},{"$error":"#REF!"},{"$error":"#REF!"},{"$error":"#REF!"},{"$error":"#REF!"},"TOTALE\nGENER."]
[]
[null,"A.1.1"]
[null,"A.1.2"]
[null,"A.1.3"]
[null,"A.1.4"]
[null,"A.1.5"]
[null,"A.1.6"]
[null,"A.1.7"]
[null,"A.1.8"]
[null,"A.1.9"]
[null,"A.1.10"]
[null,"A.1.11"]
[null,"A.1.12"]
[null,"A.1.13"]
[null,"A.1.14"]
[null,"A.1.15"]
[null,"A.1.16",null,null,null,null,null,null,null,null,null,null,null,{"$f":"SUM(E38:M38)","v":0}]
[null,"A.1.17",null,null,null,null,null,null,null,null,null,null,null,0]
[null,"A.1.18",null,null,null,null,null,null,null,null,null,null,null,0]
[null,"A.1.19",null,null,null,null,null,null,null,null,null,null,null,0]
[null,"A.1.20",null,null,null,null,null,null,null,null,null,null,null,0]
[null,"A.1.21",null,null,null,null,null,null,null,null,null,null,null,0]
[null,"A.1.22",null,null,null,null,null,null,null,null,null,null,null,0]
[null,"A.1.23",null,null,null,null,null,null,null,null,null,null,null,0]
[null,"A.1.24",null,null,null,null,null,null,null,null,null,null,null,0]
[null,"A.1.25",null,null,null,null,null,null,null,null,null,null,null,0]
[null,"A.1.26",null,null,null,null,null,null,null,null,null,null,null,0]
[null,"A.1.27",null,null,null,null,null,null,null,null,null,null,null,0]
[null,"A.1.28",null,null,null,null,null,null,null,null,null,null,null,0]
[null,"A.1.29",null,null,null,null,null,null,null,null,null,null,null,0]
[null,"A.1.30",null,null,null,null,null,null,null,null,null,null,null,0]
[null,"A.1.31",null,null,null,null,null,null,null,null,null,null,null,0]
[null,"A.1.32",null,null,null,null,null,null,null,null,null,null,null,0]
[null,"A.1.33",null,null,null,null,null,null,null,null,null,null,null,0]
[null,"A.1.34",null,null,null,null,null,null,null,null,null,null,null,0]
[null,"A.1.35",null,null,null,null,null,null,null,null,null,null,null,0]
[null,"A.1.36",null,null,null,null,null,null,null,null,null,null,null,0]
[null,"A.1.37",null,null,null,null,null,null,null,null,null,null,null,0]
[null,"A.1.38",null,null,null,null,null,null,null,null,null,null,null,0]
[null,"A.1.39",null,null,null,null,null,null,null,null,null,null,null,0]
[null,"A.1.40",null,null,null,null,null,null,null,null,null,null,null,0]
[null,"A.1.41",null,null,null,null,null,null,null,null,null,null,null,0]
[null,"A.1.42",null,null,null,null,null,null,null,null,null,null,null,0]
[null,"A.1.43",null,null,null,null,null,null,null,null,null,null,null,0]
[null,"A.1.44",null,null,null,null,null,null,null,null,null,null,null,0]
[null,"A.1.45",null,null,null,null,null,null,null,null,null,null,null,0]
[null,"A.1.46",null,null,null,null,null,null,null,null,null,null,null,0]
[null,"A.1.47",null,null,null,null,null,null,null,null,null,null,null,0]
[null,"A.1.48",null,null,null,null,null,null,null,null,null,null,null,0]
[null,"A.1.49",null,null,null,null,null,null,null,null,null,null,null,0]
[null,"A.1.50",null,null,null,null,null,null,null,null,null,null,null,0]
[]
[null,null,"a - TOTALE MATERIALI",null,{"$f":"SUM(E23:E72)","v":0},0,0,0,0,0,0,0,0,0,null,null,{"$f":"IF(AND(SUM(N74)=0,A74<>\"\"),\" - \" &\"MATERIALI: DETTAGLIO\"&\" \n\",\"\")","v":""}]
[]
[]
[null,null,"(*) SONO ESCLUSI DAL SEGUENTE ELENCO: MATERIALI DI CONSUMO, UTENSILERIE, E MINUTERIA  O MATERIALE CON DESCRIZIONE GENERICA"]
[]
[]
[null,null,"b) - MACCHINARI, IMPIANTI, ATTREZZATURE VARIE, PROGRAMMI INFORMATICI E SERVIZI PER LE TECNOLOGIE DELL'INFORMAZIONE E DELLA COMUNICAZIONE (TIC) NECESSARI PER L'ATTIVAZIONE DI CORSI CHE UTILIZZANO LE TECNOLOGIE ABILITANTI SVOLTI IN MODALITA' DISTANCE LEARNING"]
[]
[null,null,"DESCRIZIONE",null,{"$f":"#REF!+1","v":{"$error":"#REF!"}},{"$f":"E82+1","v":{"$error":"#REF!"}},{"$error":"#REF!"},{"$error":"#REF!"},{"$error":"#REF!"},{"$error":"#REF!"},{"$error":"#REF!"},{"$error":"#REF!"},{"$error":"#REF!"},"TOTALE\nGENER."]
[]
[null,"B.1.1",null,null,null,null,null,null,null,null,null,null,null,{"$f":"SUM(E84:M84)","v":0}]
[null,"B.1.2",null,null,null,null,null,null,null,null,null,null,null,0]
[null,"B.1.3",null,null,null,null,null,null,null,null,null,null,null,0]
[null,"B.1.4",null,null,null,null,null,null,null,null,null,null,null,0]
[null,"B.1.5",null,null,null,null,null,null,null,null,null,null,null,0]
[null,"B.1.6",null,null,null,null,null,null,null,null,null,null,null,0]
[null,"B.1.7",null,null,null,null,null,null,null,null,null,null,null,0]
[null,"B.1.8",null,null,null,null,null,null,null,null,null,null,null,0]
[null,"B.1.9",null,null,null,null,null,null,null,null,null,null,null,0]
[null,"B.1.10",null,null,null,null,null,null,null,null,null,null,null,0]
[null,"B.1.11",null,null,null,null,null,null,null,null,null,null,null,0]
[null,"B.1.12",null,null,null,null,null,null,null,null,null,null,null,0]
[null,"B.1.13",null,null,null,null,null,null,null,null,null,null,null,0]
[null,"B.1.14",null,null,null,null,null,null,null,null,null,null,null,0]
[null,"B.1.15",null,null,null,null,null,null,null,null,null,null,null,0]
[null,"B.1.16",null,null,null,null,null,null,null,null,null,null,null,0]
[null,"B.1.17",null,null,null,null,null,null,null,null,null,null,null,0]
[null,"B.1.18",null,null,null,null,null,null,null,null,null,null,null,0]
[null,"B.1.19",null,null,null,null,null,null,null,null,null,null,null,0]
[null,"B.1.20",null,null,null,null,null,null,null,null,null,null,null,0]
[null,"B.1.21",null,null,null,null,null,null,null,null,null,null,null,0]
[null,"B.1.22",null,null,null,null,null,null,null,null,null,null,null,0]
[null,"B.1.23",null,null,null,null,null,null,null,null,null,null,null,0]
[null,"B.1.24",null,null,null,null,null,null,null,null,null,null,null,0]
[null,"B.1.25",null,null,null,null,null,null,null,null,null,null,null,0]
[null,"B.1.26",null,null,null,null,null,null,null,null,null,null,null,0]
[null,"B.1.27",null,null,null,null,null,null,null,null,null,null,null,0]
[null,"B.1.28",null,null,null,null,null,null,null,null,null,null,null,0]
[null,"B.1.29",null,null,null,null,null,null,null,null,null,null,null,0]
[null,"B.1.30",null,null,null,null,null,null,null,null,null,null,null,0]
[null,"B.1.31",null,null,null,null,null,null,null,null,null,null,null,0]
[null,"B.1.32",null,null,null,null,null,null,null,null,null,null,null,0]
[null,"B.1.33",null,null,null,null,null,null,null,null,null,null,null,{"$f":"SUM(E116:M116)","v":0}]
[null,"B.1.34",null,null,null,null,null,null,null,null,null,null,null,0]
[null,"B.1.35",null,null,null,null,null,null,null,null,null,null,null,0]
[null,"B.1.36",null,null,null,null,null,null,null,null,null,null,null,0]
[null,"B.1.37",null,null,null,null,null,null,null,null,null,null,null,0]
[null,"B.1.38",null,null,null,null,null,null,null,null,null,null,null,0]
[null,"B.1.39",null,null,null,null,null,null,null,null,null,null,null,0]
[null,"B.1.40",null,null,null,null,null,null,null,null,null,null,null,0]
[null,"B.1.41",null,null,null,null,null,null,null,null,null,null,null,0]
[null,"B.1.42",null,null,null,null,null,null,null,null,null,null,null,0]
[null,"B.1.43",null,null,null,null,null,null,null,null,null,null,null,0]
[null,"B.1.44",null,null,null,null,null,null,null,null,null,null,null,0]
[null,"B.1.45",null,null,null,null,null,null,null,null,null,null,null,0]
[null,"B.1.46",null,null,null,null,null,null,null,null,null,null,null,0]
[null,"B.1.47",null,null,null,null,null,null,null,null,null,null,null,0]
[null,"B.1.48",null,null,null,null,null,null,null,null,null,null,null,0]
[null,"B.1.49",null,null,null,null,null,null,null,null,null,null,null,0]
[null,"B.1.50",null,null,null,null,null,null,null,null,null,null,null,0]
[null,null,"B.1 - STRUMENTAZIONE ED ATTREZZATURE STUDI FATT.TA' VALORE TOTALE",null,{"$f":"SUM(E84:E133)","v":0},0,0,0,0,0,0,0,0,0]
[null,null,"B.1 - STRUM. E ATTREZZ.\nSTUDI FATT.TA' %",null,{"$f":"IF(E$137=0,\"\",E134/E$137)","v":""},"","","","","","","",""]
[]
[null,null,"b) - TOTALE STRUMENTAZIONE ED ATTREZZATURE",null,{"$f":"SUM(E84:E133)","v":0},0,0,0,0,0,0,0,0,0,null,null,{"$f":"IF(AND(SUM(N137)=0,A137<>\"\"),\" - \" &\"STRUMENTAZIONE ED ATTREZZATURE: DETTAGLIO\"&\" \n\",\"\")","v":""}]
[]
[]
[null,null,"c) - ALTRE SPESE: ONERI ACCESSORI, OPERE MURARIE O ALTRE SPESE GENERALI STRETTAMENTE PERTINENTI ALL'ESECUZIONE DEL PROGETTO "]
[]
[null,null,"DESCRIZIONE",null,{"$f":"#REF!+1","v":{"$error":"#REF!"}},{"$f":"E142+1","v":{"$error":"#REF!"}},{"$error":"#REF!"},{"$error":"#REF!"},{"$error":"#REF!"},{"$error":"#REF!"},{"$error":"#REF!"},{"$error":"#REF!"},{"$error":"#REF!"},"TOTALE\nGENER."]
[]
[null,"C.1.1"]
[null,"C.1.2"]
[null,"C.1.3"]
[null,"C.1.4"]
[null,"C.1.5"]
[null,"C.1.6"]
[null,"C.1.7"]
[null,"C.1.8"]
[null,"C.1.9"]
[null,"C.1.10"]
[null,"C.1.11"]
[null,"C.1.12"]
[null,"C.1.13"]
[null,"C.1.14"]
[null,"C.1.15"]
[null,"C.1.16",null,null,null,null,null,null,null,null,null,null,null,{"$f":"SUM(E159:M159)","v":0}]
[null,"C.1.17",null,null,null,null,null,null,null,null,null,null,null,0]
[null,"C.1.18",null,null,null,null,null,null,null,null,null,null,null,0]
[null,"C.1.19",null,null,null,null,null,null,null,null,null,null,null,0]
[null,"C.1.20",null,null,null,null,null,null,null,null,null,null,null,0]
[null,"C.1.21",null,null,null,null,null,null,null,null,null,null,null,0]
[null,"C.1.22",null,null,null,null,null,null,null,null,null,null,null,0]
[null,"C.1.23",null,null,null,null,null,null,null,null,null,null,null,0]
[null,"C.1.24",null,null,null,null,null,null,null,null,null,null,null,0]
[null,"C.1.25",null,null,null,null,null,null,null,null,null,null,null,0]
[null,"C.1.26",null,null,null,null,null,null,null,null,null,null,null,0]
[null,"C.1.27",null,null,null,null,null,null,null,null,null,null,null,0]
[null,"C.1.28",null,null,null,null,null,null,null,null,null,null,null,0]
[null,"C.1.29",null,null,null,null,null,null,null,null,null,null,null,0]
[null,"C.1.30",null,null,null,null,null,null,null,null,null,null,null,0]
[null,"C.1.31",null,null,null,null,null,null,null,null,null,null,null,0]
[null,"C.1.32",null,null,null,null,null,null,null,null,null,null,null,0]
[null,"C.1.33",null,null,null,null,null,null,null,null,null,null,null,0]
[null,"C.1.34",null,null,null,null,null,null,null,null,null,null,null,0]
[null,"C.1.35",null,null,null,null,null,null,null,null,null,null,null,0]
[null,"C.1.36",null,null,null,null,null,null,null,null,null,null,null,0]
[null,"C.1.37",null,null,null,null,null,null,null,null,null,null,null,0]
[null,"C.1.38",null,null,null,null,null,null,null,null,null,null,null,0]
[null,"C.1.39",null,null,null,null,null,null,null,null,null,null,null,0]
[null,"C.1.40",null,null,null,null,null,null,null,null,null,null,null,0]
[null,"C.1.41",null,null,null,null,null,null,null,null,null,null,null,0]
[null,"C.1.42",null,null,null,null,null,null,null,null,null,null,null,0]
[null,"C.1.43",null,null,null,null,null,null,null,null,null,null,null,0]
[null,"C.1.44",null,null,null,null,null,null,null,null,null,null,null,0]
[null,"C.1.45",null,null,null,null,null,null,null,null,null,null,null,0]
[null,"C.1.46",null,null,null,null,null,null,null,null,null,null,null,0]
[null,"C.1.47",null,null,null,null,null,null,null,null,null,null,null,0]
[null,"C.1.48",null,null,null,null,null,null,null,null,null,null,null,0]
[null,"C.1.49",null,null,null,null,null,null,null,null,null,null,null,0]
[null,"C.1.50",null,null,null,null,null,null,null,null,null,null,null,0]
[null,null,"C.1 - SERVIZI DI CONSULENZA STUDI FATT.TA' VALORE TOTALE",null,{"$f":"SUM(E144:E193)","v":0},0,0,0,0,0,0,0,0,0]
[null,null,"C.1 - SERVIZI CONSULENZA\nSTUDI FATT.TA' %",null,{"$f":"IF(E$197=0,\"\",E194/E$197)","v":""},"","","","","","","",""]
[]
[null,null,"C - TOTALE SERVIZI DI CONSULENZA",null,{"$f":"SUM(E144:E193)","v":0},0,0,0,0,0,0,0,0,0,null,null,{"$f":"IF(AND(SUM(N197)=0,A197<>\"\"),\" - \" &\"SERVIZI DI CONSULENZA: DETTAGLIO\"&\" \n\",\"\")","v":""}]
[]
[]
[]
[]
[]
[]
[]
[]
[null,null,null,null,null,null,null,null,null,null,null,null,null,null,null,null,{"$f":"CONCATENATE(#REF!,Q15,#REF!,#REF!,#REF!,#REF!,Q74,Q137,Q197,#REF!)","v":{"$error":"#REF!"}},{"$f":"CONCATENATE(R15,R16,#REF!)","v":{"$error":"#REF!"}}]